{"text_format":"1","workbook":"xlsx","n_sheets":1,"sheets":["BoxPlot"],"not_rendered":{"charts":1,"images":0,"macros":1,"external_links":0,"defined_names":2,"comments":0,"pivot_tables":0},"unopened":[],"bounds":{"document_bytes":16777216,"sheet_cells":100000,"rows_first":2000,"rows_last":500,"rows_between":2000,"halvings":0,"cell_chars":16384,"cell_head_chars":4096},"cells_cut":0,"cells_raw":0,"read":"whole","date_system":"1900"}

{"sheet":"BoxPlot","index":0,"n_rows":95,"n_cols":10,"rows_kept":95,"cut":false,"hidden":false,"merged":[]}
["BOITES A MOUSTACHES"]
["Ce classeur contient une macro permettant de créer des boîtes à moustaches sur des séries de données"]
["Développé par Claude Monteil (INP/ENSAT Toulouse - monteil@ensat.fr) - v1.2 - 8 mars 2005"]
[]
[]
[]
[]
[]
[]
[]
[]
[]
[]
[]
[]
[]
[]
[]
[]
[]
[]
[]
[]
[null,null,null,null,null,null,null,"Série A","Série B","Série C"]
[null,null,null,null,null,null,null,{"$f":"TRUNC(100*RAND())","v":57},10,87]
[null,null,null,null,null,null,null,47,40,14]
[null,null,null,null,null,null,null,37,42,92]
[null,null,null,null,null,null,null,8,44,42]
[null,null,null,null,null,null,null,0,50,25]
[null,null,null,null,null,null,null,2,51,86]
[null,null,null,null,null,null,null,67,55,0]
[null,null,null,null,null,null,null,14,80,70]
[null,null,null,null,null,null,null,85,90,33]
[]
[null,null,null,null,null,null,"NOM",{"$f":"BoxPlot!H$24","v":"Série A"},{"$f":"BoxPlot!I$24","v":"Série B"},{"$f":"BoxPlot!J$24","v":"Série C"}]
["",null,null,null,null,null,"q1",{"$f":"QUARTILE(BoxPlot!H$24:H$33,1)","v":8},{"$f":"QUARTILE(BoxPlot!I$24:I$33,1)","v":42},{"$f":"QUARTILE(BoxPlot!J$24:J$33,1)","v":25}]
[null,null,null,null,null,null,"min",{"$f":"MIN(BoxPlot!H$24:H$33)","v":0},{"$f":"MIN(BoxPlot!I$24:I$33)","v":10},{"$f":"MIN(BoxPlot!J$24:J$33)","v":0}]
[null,null,null,null,null,null,"moust. inf.",{"$f":"PlusPetiteValeurSuperieureA(BoxPlot!H$24:H$33,H$36-1.5*(H$43-H$36))","v":0},{"$f":"PlusPetiteValeurSuperieureA(BoxPlot!I$24:I$33,I$36-1.5*(I$43-I$36))","v":40},{"$f":"PlusPetiteValeurSuperieureA(BoxPlot!J$24:J$33,J$36-1.5*(J$43-J$36))","v":0}]
[null,null,null,null,null,null,"med",{"$f":"MEDIAN(BoxPlot!H$24:H$33)","v":37},{"$f":"MEDIAN(BoxPlot!I$24:I$33)","v":50},{"$f":"MEDIAN(BoxPlot!J$24:J$33)","v":42}]
[null,null,null,null,null,null,"moy",{"$f":"AVERAGE(BoxPlot!H$24:H$33)","v":35.222222222222221},{"$f":"AVERAGE(BoxPlot!I$24:I$33)","v":51.333333333333336},{"$f":"AVERAGE(BoxPlot!J$24:J$33)","v":49.888888888888886}]
[null,null,null,null,null,null,"moust. sup.",{"$f":"PlusGrandeValeurInferieureA(BoxPlot!H$24:H$33,H$43+1.5*(H$43-H$36))","v":85},{"$f":"PlusGrandeValeurInferieureA(BoxPlot!I$24:I$33,I$43+1.5*(I$43-I$36))","v":55},{"$f":"PlusGrandeValeurInferieureA(BoxPlot!J$24:J$33,J$43+1.5*(J$43-J$36))","v":92}]
[null,null,null,null,null,null,"max",{"$f":"MAX(BoxPlot!H$24:H$33)","v":85},{"$f":"MAX(BoxPlot!I$24:I$33)","v":90},{"$f":"MAX(BoxPlot!J$24:J$33)","v":92}]
[null,null,null,null,null,null,"q3",{"$f":"QUARTILE(BoxPlot!H$24:H$33,3)","v":57},{"$f":"QUARTILE(BoxPlot!I$24:I$33,3)","v":55},{"$f":"QUARTILE(BoxPlot!J$24:J$33,3)","v":86}]
[null,null,null,null,null,null,"nb atyp. inf.",{"$f":"NbAtypiquesInf(BoxPlot!H$24:H$33,H$38)","v":0},{"$f":"NbAtypiquesInf(BoxPlot!I$24:I$33,I$38)","v":1},{"$f":"NbAtypiquesInf(BoxPlot!J$24:J$33,J$38)","v":0}]
[null,null,null,null,null,null,"nb atyp. sup.",{"$f":"NbAtypiquesSup(BoxPlot!H$24:H$33,H$41)","v":0},{"$f":"NbAtypiquesSup(BoxPlot!I$24:I$33,I$41)","v":2},{"$f":"NbAtypiquesSup(BoxPlot!J$24:J$33,J$41)","v":0}]
[null,null,null,null,null,null,"effectif",{"$f":"COUNT(BoxPlot!H$24:H$33)","v":9},{"$f":"COUNT(BoxPlot!I$24:I$33)","v":9},{"$f":"COUNT(BoxPlot!J$24:J$33)","v":9}]
[]
[]
[]
[]
[]
[]
[]
[]
[]
[]
[]
[]
["Pour rendre la macro CreerFeuilleBoxPlot accessible depuis n'importe quel classeur :"]
["- enregistrer une copie du présent classeur sous forme de \"Macro complémentaire Excel\" :"]
[null,"valider \"Fichier / Enregistrer sous…\", choisir le type \"Macro complémentaire Excel (*.xla) et valider"]
[null,"Une copie BoxPlots.xla de la macro sans la présente feuille de calcul est créée dans le dossier"]
[null,"prédéfini d'Excel contenant les \"macros complémentaires\""]
["- refermer Excel, puis le réouvrir (afin que le nouveau classeur de macros soit pris en compte)"]
["- ajouter la macro dans Excel en validant \"Outils / Macros complémentaires …\" et en cochant \"BoxPlots\""]
["- ajouter une icône dans une barre d'outils :"]
[null,"* valider \"Affichage / Barre d'outils / Personnaliser…\" (ou clic-droit dans une barre / \"Personnaliser…\")"]
[null,"* dans l'onglet \"Commandes\", sélectionner la catégorie \"Macro\""]
[null,"* faire glisser \"Bouton personnalisé\" dans une barre d'outils à l'endroit désiré"]
[null,"* cliquer-droit sur cette icône et valider \"Affecter une macro…\""]
[null,null,"taper \"CreerFeuilleBoxPlot\" dans la zone de saisie \"Nom de la macro\""]
[null,"* cliquer-droit sur l'icône, remplacer le nom \"Bouton personnalisé\" par \"Boîte à moustaches\" et valider"]
[null,null,"Ce texte s'affichera dans l'info-bulle lorsque le curseur de souris est arrêté sur l'icône"]
[]
["Pour consulter le code Visual Basic de la macro :"]
["- ouvrir l'éditeur Visual Basic en validant \"Outils / Macro / Visual Basic Editor\" (ou raccourci Alt-F11)"]
["- afficher la fenêtre des projets en validant \"Affichage / Explorateur de projets\" (ou raccourci Ctrl-R)"]
["- développer le libellé \"BoxPlots.xla\" (case +), puis \"Modules\", et double-cliquer sur \"Module1\""]
["- le module contient 10 procédures et fonctions :"]
[null,"* procédure CreerFeuilleBoxPlot : "]
[null,null,"c'est la macro principale appelant CreerStats et CreerBoitesAMoustaches"]
[null,"* fonctions PlageTextuelle et PlageNumerique (utilisées par CreerFeuilleBoxPlot) : "]
[null,null,"permettent de vérifier que la sélection est bien numérique avec un en-tête de libellés"]
[null,"* procédure CreerStats : ajoute une feuille avec le tableau des statistiques descriptives"]
[null,"* procédure CreerBoitesAMoustaches : insère le graphique des boîtes à moustaches dans la feuille"]
[null,"* fonction ExisteFeuille : utilisée par CreerStats pour vérifier le nommage de la feuille créée"]
[null,"* fonctions PlusGrandeValeurInferieureA et PlusPetiteValeurSuperieureA : "]
[null,"- ","permettent de calculer les extrémités des moustaches"]
[null,"- ","ces fonctions sont collées dans les formules du tableau des statistiques descriptives"]
[null,"* fonctions NbAtypiquesInf et NbAtypiquesSup : "]
[null,"- ","permettent de déterminer le nombre de points atypiques"]
[null,"- ","ces fonctions sont collées dans les formules du tableau des statistiques descriptives"]
[null,"- ","les valeurs résultantes ne sont pas reprises dans le graphique"]
[null,"- ","en cas de valeur nulle, la mise en forme conditionnelle mise sur ces cellules"]
[null,null,"rend leur contenu invisible (couleur blanche de caractère, identique à celle du fond)"]